[Event "Betsys MČR v online bleskovém šachu 2021"]
[Site "Chess.com"]
[Date "2021.04.17"]
[Round "12"]
[White "xPsylocke"]
[Black "HCMotorCB"]
[Result "1-0"]
[WhiteElo "2267"]
[BlackElo "2377"]
[TimeControl "180+1"]
[EndTime "11:01:57 PDT"]
[Termination "Uživatel xPsylocke zvítězil na čas"]

1. e4 {[%clk 0:03:00.9]} 1... c5 {[%clk 0:02:58.9]} 2. Nc3 {[%clk 0:02:59.8]}
2... Nc6 {[%clk 0:02:59.2]} 3. d3 {[%clk 0:02:59.8]} 3... g6 {[%clk 0:02:59.6]}
4. g3 {[%clk 0:02:59.9]} 4... Bg7 {[%clk 0:03:00.1]} 5. Be3 {[%clk 0:03:00]}
5... Nd4 {[%clk 0:02:59]} 6. Qd2 {[%clk 0:02:59.6]} 6... d6 {[%clk 0:02:58.3]}
7. Bg2 {[%clk 0:02:57.9]} 7... e6 {[%clk 0:02:58.2]} 8. Nd1 {[%clk 0:02:56.9]}
8... Rb8 {[%clk 0:02:56.5]} 9. c3 {[%clk 0:02:56.7]} 9... Nc6 {[%clk 0:02:56.6]}
10. Ne2 {[%clk 0:02:57]} 10... b5 {[%clk 0:02:55.9]} 11. h4 {[%clk 0:02:55.8]}
11... h5 {[%clk 0:02:55.2]} 12. O-O {[%clk 0:02:52]} 12... Nge7 {[%clk
0:02:54.5]} 13. f4 {[%clk 0:02:49.8]} 13... b4 {[%clk 0:02:52.2]} 14. c4 {[%clk
0:02:49.7]} 14... a5 {[%clk 0:02:42.8]} 15. Rc1 {[%clk 0:02:48.5]} 15... a4
{[%clk 0:02:42]} 16. Kh2 {[%clk 0:02:43.8]} 16... a3 {[%clk 0:02:39.8]} 17. b3
{[%clk 0:02:43.1]} 17... f6 {[%clk 0:02:20.8]} 18. Bh3 {[%clk 0:02:22.8]} 18...
e5 {[%clk 0:02:18.5]} 19. f5 {[%clk 0:02:01.2]} 19... gxf5 {[%clk 0:02:15.7]}
20. exf5 {[%clk 0:02:01.3]} 20... Nd4 {[%clk 0:02:05.6]} 21. Ng1 {[%clk
0:01:28.2]} 21... Ndxf5 {[%clk 0:02:00]} 22. Qf2 {[%clk 0:01:17.9]} 22... Nxe3
{[%clk 0:01:56]} 23. Nxe3 {[%clk 0:01:18.8]} 23... Bxh3 {[%clk 0:01:54.5]} 24.
Nxh3 {[%clk 0:01:19]} 24... Qd7 {[%clk 0:01:52.2]} 25. Rce1 {[%clk 0:01:16.3]}
25... Kd8 {[%clk 0:01:45.9]} 26. Qf3 {[%clk 0:01:15]} 26... Kc7 {[%clk
0:01:40.4]} 27. Nf2 {[%clk 0:01:15.1]} 27... Rbf8 {[%clk 0:01:30.8]} 28. Ne4
{[%clk 0:01:14.5]} 28... f5 {[%clk 0:01:22.3]} 29. Ng5 {[%clk 0:01:14.3]} 29...
Bf6 {[%clk 0:01:20.3]} 30. Nh3 {[%clk 0:00:57.5]} 30... f4 {[%clk 0:01:12.5]}
31. gxf4 {[%clk 0:00:53.4]} 31... Bxh4 {[%clk 0:01:11.1]} 32. Re2 {[%clk
0:00:51]} 32... Kb6 {[%clk 0:00:52]} 33. Rg2 {[%clk 0:00:39.2]} 33... Nc6 {[%clk
0:00:44.2]} 34. Nd5+ {[%clk 0:00:38.9]} 34... Ka5 {[%clk 0:00:43.3]} 35. Qe4
{[%clk 0:00:33.1]} 35... Bd8 {[%clk 0:00:35.7]} 36. f5 {[%clk 0:00:22.3]} 36...
Rhg8 {[%clk 0:00:33.3]} 37. Rxg8 {[%clk 0:00:20.9]} 37... Rxg8 {[%clk
0:00:33.3]} 38. f6 {[%clk 0:00:20.4]} 38... Qg4 {[%clk 0:00:28]} 39. Qxg4 {[%clk
0:00:18.9]} 39... hxg4 {[%clk 0:00:28.1]} 40. Ng1 {[%clk 0:00:19.1]} 40... Nd4
{[%clk 0:00:26.1]} 41. Kg2 {[%clk 0:00:19]} 41... Ne6 {[%clk 0:00:22.9]} 42. Ne2
{[%clk 0:00:19]} 42... Rf8 {[%clk 0:00:21]} 43. Ng3 {[%clk 0:00:12.6]} 43... Rf7
{[%clk 0:00:14.8]} 44. Ne4 {[%clk 0:00:12.1]} 44... Rf8 {[%clk 0:00:10.9]} 45.
Nxd6 {[%clk 0:00:11.3]} 45... Ka6 {[%clk 0:00:06.1]} 46. Ne4 {[%clk 0:00:10]}
46... Kb7 {[%clk 0:00:04.3]} 47. Kg3 {[%clk 0:00:09.1]} 47... Kc6 {[%clk
0:00:04.5]} 48. Kxg4 {[%clk 0:00:07.1]} 48... Rg8+ {[%clk 0:00:04.6]} 49. Kf3
{[%clk 0:00:05.6]} 49... Nd4+ {[%clk 0:00:04.3]} 50. Ke3 {[%clk 0:00:05.9]}
50... Rf8 {[%clk 0:00:02.5]} 51. Ng5 {[%clk 0:00:02.8]} 1-0

[Event "Betsys MČR v online bleskovém šachu 2021"]
[Site "Chess.com"]
[Date "2021.04.17"]
[Round "12"]
[White "Bagr92"]
[Black "Rognort"]
[Result "1/2-1/2"]
[WhiteElo "1607"]
[BlackElo "1782"]
[TimeControl "180+1"]
[EndTime "11:01:58 PDT"]
[Termination "Remíza opakováním pozice"]

1. e4 {[%clk 0:02:56.2]} 1... d5 {[%clk 0:02:55.9]} 2. exd5 {[%clk 0:02:55.5]}
2... Qxd5 {[%clk 0:02:56.8]} 3. c4 {[%clk 0:02:56]} 3... Qe4+ {[%clk 0:02:56.6]}
4. Be2 {[%clk 0:02:55.1]} 4... Bf5 {[%clk 0:02:54.6]} 5. Nc3 {[%clk 0:02:56]}
5... Qe6 {[%clk 0:02:47.1]} 6. d4 {[%clk 0:02:54.8]} 6... Nf6 {[%clk 0:02:46.6]}
7. Nf3 {[%clk 0:02:54]} 7... c6 {[%clk 0:02:44.2]} 8. O-O {[%clk 0:02:53.7]}
8... Qc8 {[%clk 0:02:35.2]} 9. d5 {[%clk 0:02:52.8]} 9... g6 {[%clk 0:02:25.1]}
10. Nd4 {[%clk 0:02:46.3]} 10... cxd5 {[%clk 0:02:14.7]} 11. Nxf5 {[%clk
0:02:44.2]} 11... Qxf5 {[%clk 0:02:14.4]} 12. cxd5 {[%clk 0:02:36.7]} 12... Bg7
{[%clk 0:02:13.7]} 13. d6 {[%clk 0:02:34.8]} 13... O-O {[%clk 0:01:58.5]} 14.
dxe7 {[%clk 0:02:20.9]} 14... Re8 {[%clk 0:01:58.6]} 15. Bd3 {[%clk 0:02:07.9]}
15... Qh5 {[%clk 0:00:59.7]} 16. Qxh5 {[%clk 0:02:00.3]} 16... Nxh5 {[%clk
0:01:00.6]} 17. Re1 {[%clk 0:01:59.3]} 17... Nc6 {[%clk 0:01:00.3]} 18. Bg5
{[%clk 0:01:42.9]} 18... Bf6 {[%clk 0:00:54.6]} 19. Bxf6 {[%clk 0:01:39.2]}
19... Nxf6 {[%clk 0:00:55.5]} 20. Nb5 {[%clk 0:01:39.3]} 20... Rxe7 {[%clk
0:00:48.8]} 21. Rxe7 {[%clk 0:01:34.7]} 21... Nxe7 {[%clk 0:00:49.7]} 22. Re1
{[%clk 0:01:31.5]} 22... Kf8 {[%clk 0:00:42.4]} 23. Bc4 {[%clk 0:01:27.9]} 23...
a6 {[%clk 0:00:37.9]} 24. Nd6 {[%clk 0:01:25.5]} 24... Ned5 {[%clk 0:00:29.7]}
25. Nxb7 {[%clk 0:01:04]} 25... a5 {[%clk 0:00:19.1]} 26. b3 {[%clk 0:01:00.1]}
26... a4 {[%clk 0:00:18.7]} 27. Nd6 {[%clk 0:00:52.3]} 27... axb3 {[%clk
0:00:15.1]} 28. Bxb3 {[%clk 0:00:51.8]} 28... Ra6 {[%clk 0:00:09]} 29. Ne4
{[%clk 0:00:33.2]} 29... Rc6 {[%clk 0:00:09.6]} 30. Nxf6 {[%clk 0:00:29.8]}
30... Nxf6 {[%clk 0:00:10.5]} 31. f3 {[%clk 0:00:29.8]} 31... Nd7 {[%clk
0:00:09.2]} 32. Kf2 {[%clk 0:00:29.1]} 32... Nc5 {[%clk 0:00:09.5]} 33. Rc1
{[%clk 0:00:23.2]} 33... Nd3+ {[%clk 0:00:09.3]} 34. Ke3 {[%clk 0:00:22.2]}
34... Nxc1 {[%clk 0:00:10.2]} 35. Bd5 {[%clk 0:00:21.7]} 35... Re6+ {[%clk
0:00:09.5]} 36. Bxe6 {[%clk 0:00:20.7]} 36... fxe6 {[%clk 0:00:10.4]} 37. a4
{[%clk 0:00:19]} 37... Nb3 {[%clk 0:00:10.3]} 38. Kd3 {[%clk 0:00:18.4]} 38...
Ke7 {[%clk 0:00:10.3]} 39. Kc4 {[%clk 0:00:18.8]} 39... Na5+ {[%clk 0:00:10.5]}
40. Kb5 {[%clk 0:00:19.1]} 40... Nb7 {[%clk 0:00:09.8]} 41. Kb6 {[%clk
0:00:19.4]} 41... Nd6 {[%clk 0:00:09.9]} 42. a5 {[%clk 0:00:19.8]} 42... Kd7
{[%clk 0:00:07.2]} 43. a6 {[%clk 0:00:16]} 43... Nc8+ {[%clk 0:00:07.4]} 44. Kb7
{[%clk 0:00:15.5]} 44... Nd6+ {[%clk 0:00:06.9]} 45. Kb8 {[%clk 0:00:14.8]}
45... Nb5 {[%clk 0:00:06.8]} 46. Kb7 {[%clk 0:00:14]} 46... Kd6 {[%clk
0:00:06.5]} 47. Kb6 {[%clk 0:00:14]} 47... Nc7 {[%clk 0:00:05.9]} 48. a7 {[%clk
0:00:12.3]} 48... g5 {[%clk 0:00:05.7]} 49. g3 {[%clk 0:00:09.9]} 49... h5
{[%clk 0:00:05.9]} 50. h4 {[%clk 0:00:09.9]} 50... gxh4 {[%clk 0:00:05.8]} 51.
gxh4 {[%clk 0:00:09.6]} 51... e5 {[%clk 0:00:05.7]} 52. Kb7 {[%clk 0:00:08.9]}
52... Kd7 {[%clk 0:00:04]} 53. Kb6 {[%clk 0:00:08.7]} 53... Kd6 {[%clk
0:00:04.3]} 54. Kb7 {[%clk 0:00:09.1]} 54... Kd7 {[%clk 0:00:04.5]} 55. Kb6
{[%clk 0:00:09.5]} 55... Na8+ {[%clk 0:00:04.5]} 56. Kb7 {[%clk 0:00:09.4]}
56... Nc7 {[%clk 0:00:05.4]} 1/2-1/2

[Event "Betsys MČR v online bleskovém šachu 2021"]
[Site "Chess.com"]
[Date "2021.04.17"]
[Round "12"]
[White "Klapuch05"]
[Black "Sandokanom"]
[Result "1/2-1/2"]
[WhiteElo "1584"]
[BlackElo "1757"]
[TimeControl "180+1"]
[EndTime "11:02:01 PDT"]
[Termination "Remíza dohodou"]

1. e4 {[%clk 0:03:00.9]} 1... c5 {[%clk 0:02:59.4]} 2. Nf3 {[%clk 0:02:58.5]}
2... e6 {[%clk 0:02:59.6]} 3. d4 {[%clk 0:02:58]} 3... cxd4 {[%clk 0:02:59]} 4.
Nxd4 {[%clk 0:02:58.6]} 4... Nf6 {[%clk 0:02:59.7]} 5. Nc3 {[%clk 0:02:49.2]}
5... Bb4 {[%clk 0:02:59.2]} 6. Bd3 {[%clk 0:02:48.2]} 6... d5 {[%clk 0:02:58]}
7. e5 {[%clk 0:02:47.1]} 7... Nfd7 {[%clk 0:02:58]} 8. f4 {[%clk 0:02:46.6]}
8... Bc5 {[%clk 0:02:56.1]} 9. Be3 {[%clk 0:02:45.8]} 9... Qb6 {[%clk
0:02:50.9]} 10. Na4 {[%clk 0:02:14.5]} 10... Qa5+ {[%clk 0:02:42.4]} 11. c3
{[%clk 0:02:13.8]} 11... Bxd4 {[%clk 0:02:32]} 12. Bxd4 {[%clk 0:02:11.7]} 12...
Nc6 {[%clk 0:02:27.3]} 13. O-O {[%clk 0:02:11.4]} 13... Nxd4 {[%clk 0:02:11.3]}
14. cxd4 {[%clk 0:02:10.9]} 14... O-O {[%clk 0:01:57.3]} 15. b3 {[%clk
0:01:50.4]} 15... b5 {[%clk 0:01:41.5]} 16. Nb2 {[%clk 0:01:47.6]} 16... Qc3
{[%clk 0:01:33.7]} 17. Qc2 {[%clk 0:01:43.3]} 17... Qxd4+ {[%clk 0:01:32]} 18.
Rf2 {[%clk 0:01:38.8]} 18... g6 {[%clk 0:01:31.7]} 19. Bxb5 {[%clk 0:01:35.2]}
19... Nb6 {[%clk 0:01:21]} 20. Rd1 {[%clk 0:01:20.3]} 20... Qb4 {[%clk
0:01:10.9]} 21. Bd3 {[%clk 0:01:19.2]} 21... Bd7 {[%clk 0:01:00.9]} 22. g3
{[%clk 0:01:04.8]} 22... Rac8 {[%clk 0:00:59.8]} 23. Qd2 {[%clk 0:00:52.3]}
23... Qd4 {[%clk 0:00:39]} 24. Bf1 {[%clk 0:00:46.1]} 24... Qxd2 {[%clk
0:00:32.5]} 25. Rdxd2 {[%clk 0:00:47]} 25... Rc1 {[%clk 0:00:29.6]} 26. Rc2
{[%clk 0:00:45.8]} 26... Rc8 {[%clk 0:00:26.7]} 27. Rxc8+ {[%clk 0:00:41.4]}
27... Bxc8 {[%clk 0:00:26.9]} 28. Nd3 {[%clk 0:00:39.6]} 28... Rd1 {[%clk
0:00:22.1]} 29. Nb4 {[%clk 0:00:34.9]} 29... a5 {[%clk 0:00:18.8]} 30. Nc6
{[%clk 0:00:34.6]} 30... Ba6 {[%clk 0:00:17.6]} 31. Nxa5 {[%clk 0:00:27.9]}
31... d4 {[%clk 0:00:17]} 32. Kg2 {[%clk 0:00:25.9]} 32... Bxf1+ {[%clk
0:00:15.2]} 33. Rxf1 {[%clk 0:00:25.2]} 33... Rd2+ {[%clk 0:00:15.2]} 34. Rf2
{[%clk 0:00:25.1]} 34... Rd1 {[%clk 0:00:13.3]} 35. Nc4 {[%clk 0:00:22.6]} 35...
Nd5 {[%clk 0:00:12.3]} 36. a4 {[%clk 0:00:19.9]} 36... d3 {[%clk 0:00:12]} 37.
a5 {[%clk 0:00:19.6]} 37... Nb4 {[%clk 0:00:10.7]} 38. Rd2 {[%clk 0:00:16.7]}
38... Rb1 {[%clk 0:00:08.3]} 39. a6 {[%clk 0:00:15.5]} 39... Nxa6 {[%clk
0:00:05.8]} 40. Rxd3 {[%clk 0:00:15.6]} 40... Nc5 {[%clk 0:00:05.8]} 41. Rc3
{[%clk 0:00:14.7]} 41... Rxb3 {[%clk 0:00:05.3]} 42. Rxb3 {[%clk 0:00:14.6]}
42... Nxb3 {[%clk 0:00:06.2]} 43. Kf3 {[%clk 0:00:14.8]} 43... Nd4+ {[%clk
0:00:06.1]} 44. Ke4 {[%clk 0:00:14.4]} 44... Ne2 {[%clk 0:00:06]} 45. Ne3 {[%clk
0:00:13.6]} 45... Nc3+ {[%clk 0:00:05.6]} 46. Kf3 {[%clk 0:00:13.8]} 46... Kg7
{[%clk 0:00:04.5]} 47. h3 {[%clk 0:00:13.9]} 47... h6 {[%clk 0:00:03.8]} 48. g4
{[%clk 0:00:14.6]} 48... f6 {[%clk 0:00:04.2]} 49. exf6+ {[%clk 0:00:14.7]}
49... Kxf6 {[%clk 0:00:05.1]} 50. Nc4 {[%clk 0:00:15.2]} 50... Nd5 {[%clk
0:00:04.8]} 51. Nd6 {[%clk 0:00:15.1]} 51... e5 {[%clk 0:00:04.4]} 52. fxe5+
{[%clk 0:00:15.1]} 52... Kxe5 {[%clk 0:00:04.2]} 53. Nf7+ {[%clk 0:00:15.3]}
53... Kf6 {[%clk 0:00:04.1]} 54. Nxh6 {[%clk 0:00:15.8]} 54... Ne7 {[%clk
0:00:03.8]} 55. Nf5 {[%clk 0:00:14.6]} 55... Nxf5 {[%clk 0:00:03]} 56. gxf5
{[%clk 0:00:14.8]} 56... Kxf5 {[%clk 0:00:03.9]} 57. Kg3 {[%clk 0:00:15.1]}
57... Kg5 {[%clk 0:00:04.5]} 58. Kg2 {[%clk 0:00:14.5]} 58... Kh5 {[%clk
0:00:05.4]} 59. Kg3 {[%clk 0:00:14.8]} 59... g5 {[%clk 0:00:06.3]} 60. Kg2
{[%clk 0:00:14.6]} 60... Kg6 {[%clk 0:00:07]} 61. Kg3 {[%clk 0:00:15]} 61... Kh5
{[%clk 0:00:07.9]} 1/2-1/2

[Event "Betsys MČR v online bleskovém šachu 2021"]
[Site "Chess.com"]
[Date "2021.04.17"]
[Round "12"]
[White "PetrVelicka"]
[Black "Trener-Pokrocili"]
[Result "1-0"]
[WhiteElo "2377"]
[BlackElo "2266"]
[TimeControl "180+1"]
[EndTime "11:02:02 PDT"]
[Termination "Uživatel PetrVelicka zvítězil na čas"]

1. e4 {[%clk 0:02:59.4]} 1... g6 {[%clk 0:02:59.7]} 2. d4 {[%clk 0:02:58.3]}
2... Bg7 {[%clk 0:03:00]} 3. c3 {[%clk 0:02:57.5]} 3... d5 {[%clk 0:02:58.8]} 4.
Nd2 {[%clk 0:02:54.6]} 4... e5 {[%clk 0:02:31.3]} 5. dxe5 {[%clk 0:02:49.7]}
5... Bxe5 {[%clk 0:02:30.8]} 6. Ngf3 {[%clk 0:02:49.5]} 6... Bg7 {[%clk
0:02:30.6]} 7. exd5 {[%clk 0:02:46.1]} 7... Qxd5 {[%clk 0:02:25.1]} 8. Bc4
{[%clk 0:02:45.4]} 8... Qd8 {[%clk 0:02:19.8]} 9. O-O {[%clk 0:02:44.4]} 9...
Ne7 {[%clk 0:02:19.9]} 10. Qb3 {[%clk 0:02:13.8]} 10... O-O {[%clk 0:02:12.8]}
11. Ng5 {[%clk 0:02:13.5]} 11... Qe8 {[%clk 0:02:09.7]} 12. Ndf3 {[%clk
0:02:07.6]} 12... h6 {[%clk 0:02:06.9]} 13. Ne4 {[%clk 0:02:03.9]} 13... Nbc6
{[%clk 0:02:04.2]} 14. Qd1 {[%clk 0:01:51.8]} 14... Bg4 {[%clk 0:01:52.4]} 15.
Be2 {[%clk 0:01:43.3]} 15... Rd8 {[%clk 0:01:44.3]} 16. Ned2 {[%clk 0:01:43.2]}
16... Qd7 {[%clk 0:01:37.9]} 17. h3 {[%clk 0:01:40.5]} 17... Bf5 {[%clk
0:01:37.5]} 18. Nb3 {[%clk 0:01:36.8]} 18... Qxd1 {[%clk 0:01:21.4]} 19. Rxd1
{[%clk 0:01:35.8]} 19... Rxd1+ {[%clk 0:01:21.4]} 20. Bxd1 {[%clk 0:01:35.8]}
20... Rd8 {[%clk 0:01:21.3]} 21. Be3 {[%clk 0:01:33.5]} 21... b6 {[%clk
0:01:18.7]} 22. Be2 {[%clk 0:01:30.4]} 22... Nd5 {[%clk 0:01:15.2]} 23. Bd2
{[%clk 0:01:28.1]} 23... Nf6 {[%clk 0:01:10.9]} 24. Bf4 {[%clk 0:01:23.8]} 24...
Ne8 {[%clk 0:00:57.7]} 25. Be3 {[%clk 0:01:18.7]} 25... Nd6 {[%clk 0:00:50]} 26.
Nbd4 {[%clk 0:01:17.7]} 26... Nxd4 {[%clk 0:00:47.7]} 27. Nxd4 {[%clk
0:01:17.4]} 27... Be4 {[%clk 0:00:44.7]} 28. f3 {[%clk 0:01:01.8]} 28... Bb7
{[%clk 0:00:42.3]} 29. Kf2 {[%clk 0:00:57.5]} 29... c5 {[%clk 0:00:40.1]} 30.
Nb5 {[%clk 0:00:55]} 30... Nxb5 {[%clk 0:00:32.5]} 31. Bxb5 {[%clk 0:00:53.3]}
31... h5 {[%clk 0:00:28.4]} 32. h4 {[%clk 0:00:51.2]} 32... Bf6 {[%clk
0:00:27.6]} 33. g3 {[%clk 0:00:51]} 33... Bd5 {[%clk 0:00:25.8]} 34. a4 {[%clk
0:00:45.7]} 34... a5 {[%clk 0:00:16.6]} 35. Bf4 {[%clk 0:00:40.7]} 35... Bb3
{[%clk 0:00:14.3]} 36. Re1 {[%clk 0:00:37.4]} 36... Rc8 {[%clk 0:00:05.1]} 37.
Bd6 {[%clk 0:00:25.3]} 37... Kg7 {[%clk 0:00:05.1]} 38. Be7 {[%clk 0:00:23]}
38... Be6 {[%clk 0:00:04.4]} 39. Bxf6+ {[%clk 0:00:21.2]} 39... Kxf6 {[%clk
0:00:04.6]} 40. Rd1 {[%clk 0:00:21.8]} 40... Ke7 {[%clk 0:00:04.4]} 41. Ke3
{[%clk 0:00:20.5]} 41... Rd8 {[%clk 0:00:04.7]} 42. Rxd8 {[%clk 0:00:18.6]}
42... Kxd8 {[%clk 0:00:04.4]} 43. Kf4 {[%clk 0:00:18.5]} 43... f6 {[%clk
0:00:04.2]} 44. Bd3 {[%clk 0:00:16.8]} 44... Bf7 {[%clk 0:00:04.5]} 45. Ke4
{[%clk 0:00:15.8]} 45... Ke7 {[%clk 0:00:04.8]} 46. Bb5 {[%clk 0:00:15]} 46...
Kd6 {[%clk 0:00:04.8]} 47. f4 {[%clk 0:00:14]} 47... Bd5+ {[%clk 0:00:04.6]} 48.
Ke3 {[%clk 0:00:13.7]} 48... Bf7 {[%clk 0:00:03.1]} 49. Bd3 {[%clk 0:00:09.8]}
49... f5 {[%clk 0:00:03.1]} 50. Bb5 {[%clk 0:00:08.8]} 50... Kc7 {[%clk
0:00:03.4]} 51. Kd3 {[%clk 0:00:09.2]} 51... Kd6 {[%clk 0:00:03.6]} 52. Bc4
{[%clk 0:00:09.4]} 52... Be8 {[%clk 0:00:02]} 53. b3 {[%clk 0:00:09.3]} 53...
Kc7 {[%clk 0:00:02.3]} 54. Bg8 {[%clk 0:00:09]} 54... Kd6 {[%clk 0:00:02]} 55.
Kc4 {[%clk 0:00:07.9]} 55... Kc7 {[%clk 0:00:01.6]} 56. Kd5 {[%clk 0:00:07.7]}
1-0

[Event "Betsys MČR v online bleskovém šachu 2021"]
[Site "Chess.com"]
[Date "2021.04.17"]
[Round "12"]
[White "petrgnojek"]
[Black "Trickov"]
[Result "1-0"]
[WhiteElo "2289"]
[BlackElo "2402"]
[TimeControl "180+1"]
[EndTime "11:02:05 PDT"]
[Termination "Uživatel petrgnojek zvítězil na čas"]

1. d4 {[%clk 0:03:00.9]} 1... d5 {[%clk 0:02:58.3]} 2. c4 {[%clk 0:03:01.2]}
2... c6 {[%clk 0:02:57.5]} 3. Nf3 {[%clk 0:03:00.4]} 3... Nf6 {[%clk 0:02:56]}
4. Nc3 {[%clk 0:03:00.5]} 4... dxc4 {[%clk 0:02:54.7]} 5. a4 {[%clk 0:02:58.8]}
5... Bf5 {[%clk 0:02:53.3]} 6. e3 {[%clk 0:02:58.9]} 6... e6 {[%clk 0:02:51.6]}
7. Bxc4 {[%clk 0:02:58.9]} 7... Bb4 {[%clk 0:02:49.9]} 8. O-O {[%clk 0:02:58.7]}
8... O-O {[%clk 0:02:48.4]} 9. Qe2 {[%clk 0:02:57.3]} 9... Bg6 {[%clk
0:02:45.4]} 10. Rd1 {[%clk 0:02:54.2]} 10... Nbd7 {[%clk 0:02:39.8]} 11. h3
{[%clk 0:02:40.9]} 11... Qe7 {[%clk 0:02:31.1]} 12. Bd2 {[%clk 0:02:37.3]} 12...
a5 {[%clk 0:02:26]} 13. Be1 {[%clk 0:02:32.7]} 13... h6 {[%clk 0:02:13.3]} 14.
Bd3 {[%clk 0:02:27.7]} 14... Bxd3 {[%clk 0:02:09.1]} 15. Qxd3 {[%clk 0:02:28.6]}
15... e5 {[%clk 0:01:57.2]} 16. dxe5 {[%clk 0:02:12.5]} 16... Nxe5 {[%clk
0:01:51]} 17. Nxe5 {[%clk 0:02:13.4]} 17... Qxe5 {[%clk 0:01:50.3]} 18. Qd4
{[%clk 0:02:13.6]} 18... Qe7 {[%clk 0:01:40.3]} 19. Qc4 {[%clk 0:01:43.5]} 19...
Rad8 {[%clk 0:01:35]} 20. b3 {[%clk 0:01:29.5]} 20... Rfe8 {[%clk 0:01:29.2]}
21. Ne2 {[%clk 0:01:27.7]} 21... Bxe1 {[%clk 0:01:22.4]} 22. Rxe1 {[%clk
0:01:28.6]} 22... Ne4 {[%clk 0:01:20.6]} 23. Nd4 {[%clk 0:01:11.3]} 23... c5
{[%clk 0:01:19.2]} 24. Nf3 {[%clk 0:01:10.4]} 24... Qd7 {[%clk 0:01:10.8]} 25.
Rac1 {[%clk 0:00:44.1]} 25... b6 {[%clk 0:01:10.1]} 26. Qc2 {[%clk 0:00:24.8]}
26... Qd3 {[%clk 0:01:05.3]} 27. Qb2 {[%clk 0:00:14.1]} 27... Rd5 {[%clk
0:00:56.7]} 28. Qb1 {[%clk 0:00:11.3]} 28... Red8 {[%clk 0:00:52.1]} 29. Qxd3
{[%clk 0:00:04.2]} 29... Rxd3 {[%clk 0:00:51.8]} 30. Rb1 {[%clk 0:00:04.9]}
30... f6 {[%clk 0:00:41.6]} 31. Rec1 {[%clk 0:00:04.4]} 31... Nc3 {[%clk
0:00:35.4]} 32. Rb2 {[%clk 0:00:04.4]} 32... Rd1+ {[%clk 0:00:30.7]} 33. Rxd1
{[%clk 0:00:04.1]} 33... Rxd1+ {[%clk 0:00:29.1]} 34. Kh2 {[%clk 0:00:03.9]}
34... Ne4 {[%clk 0:00:23.7]} 35. g3 {[%clk 0:00:04.1]} 35... Kf7 {[%clk
0:00:13.1]} 36. Kg2 {[%clk 0:00:04.6]} 36... Ke6 {[%clk 0:00:12.6]} 37. Rc2
{[%clk 0:00:03.7]} 37... g5 {[%clk 0:00:11.9]} 38. Rb2 {[%clk 0:00:03.1]} 38...
f5 {[%clk 0:00:12]} 39. g4 {[%clk 0:00:02.7]} 39... Rd3 {[%clk 0:00:09.7]} 40.
gxf5+ {[%clk 0:00:02.1]} 40... Kxf5 {[%clk 0:00:09.5]} 41. Ne1 {[%clk 0:00:03]}
41... Rd1 {[%clk 0:00:09.3]} 42. Nf3 {[%clk 0:00:02.5]} 42... Nd6 {[%clk
0:00:08.2]} 43. Nh2 {[%clk 0:00:02]} 43... Ke4 {[%clk 0:00:08]} 44. Ng4 {[%clk
0:00:02.1]} 44... h5 {[%clk 0:00:07.5]} 45. Nf6+ {[%clk 0:00:02.4]} 45... Kf5
{[%clk 0:00:07.2]} 46. Nd7 {[%clk 0:00:02]} 46... Nc8 {[%clk 0:00:05.1]} 47. Nf8
{[%clk 0:00:02.1]} 47... Kf6 {[%clk 0:00:03.9]} 48. Nh7+ {[%clk 0:00:01.5]}
48... Kg6 {[%clk 0:00:03.8]} 49. Nf8+ {[%clk 0:00:02.2]} 49... Kf7 {[%clk
0:00:03.6]} 50. Nh7 {[%clk 0:00:02.4]} 50... Kg6 {[%clk 0:00:02.9]} 51. Nf8+
{[%clk 0:00:02.2]} 51... Kf6 {[%clk 0:00:03]} 52. Nh7+ {[%clk 0:00:02.5]} 52...
Kf5 {[%clk 0:00:02.3]} 53. e4+ {[%clk 0:00:02.1]} 53... Kg6 {[%clk 0:00:01.9]}
54. Nf8+ {[%clk 0:00:02]} 54... Kf7 {[%clk 0:00:01.2]} 55. Nh7 {[%clk
0:00:02.9]} 1-0